fUSD/lending_fUSD_20240506
["ID","MTS","AMOUNT","RATE_DAILY","PERIOD"]
[326494295,1715009445595,-625.3,0.00024657,2]
[326494296,1715009445610,-1216.27,0.00024657,2]
[326494297,1715009445620,-561.17,0.00024657,2]
[326494298,1715009445630,-1672.06,0.00024657,2]
[326494299,1715009445640,-500.0,0.00024657,2]
[326494300,1715009445650,-500.0,0.00024657,2]
[326494301,1715009445659,-500.0,0.00024657,2]
[326494302,1715009445669,-793.06,0.00024657,2]
[326494303,1715009445679,-500.0,0.00024657,2]
[326494304,1715009445689,-500.0,0.00024657,2]
[326494305,1715009445699,-1103.72,0.00024657,2]
[326494306,1715009445708,-1292.01,0.00024657,2]
[326494307,1715009445717,-810.66,0.00024657,2]
[326494308,1715009445727,-500.0,0.00024657,2]
[326494309,1715009445736,-757.91,0.00024657,2]
[326494310,1715009445746,-810.66,0.00024657,3]
[326494311,1715009445756,-810.66,0.00024657,4]
[326494312,1715009445768,-500.0,0.00024657,2]
[326494313,1715009445778,-810.66,0.00024657,5]
[326494314,1715009445789,-810.66,0.00024657,6]
[326494315,1715009445801,-500.0,0.00024657,2]
[326494316,1715009445811,-810.66,0.00024657,7]
[326494317,1715009445820,-810.66,0.00024657,8]
[326494318,1715009445833,-810.66,0.00024657,9]
[326494319,1715009445842,-810.66,0.00024657,10]
[326494320,1715009445853,-558.78,0.00024657,2]
[326494321,1715009445863,-810.66,0.00024657,11]
[326494322,1715009445873,-810.66,0.00024657,12]
[326494323,1715009445882,-810.66,0.00024657,13]
[326494324,1715009445891,-810.66,0.00024657,14]
[326494325,1715009445901,-504.58,0.00024657,2]
[326494326,1715009445910,-810.66,0.00024657,15]
[326494327,1715009445919,-810.66,0.00024657,16]
[326494328,1715009445929,-861.74,0.00024657,2]
[326494329,1715009445938,-505.79024539,0.00024657,2]
[326494330,1715009445947,-500.0,0.00024657,2]
[326494331,1715009445958,-500.0,0.00024657,2]
[326494332,1715009445969,-1023.77,0.00024657,2]
[326494333,1715009445979,-963.88,0.00024657,2]
[326494334,1715009445988,-500.0,0.00024657,2]
[326494335,1715009445997,-500.0,0.00024657,2]
[326494336,1715009446006,-766.91,0.00024657,2]
[326494337,1715009446016,-500.0,0.00024657,2]
[326494338,1715009446025,-500.0,0.00024657,2]
[326494339,1715009446034,-500.0,0.00024657,2]
[326494340,1715009446043,-810.66,0.00024657,17]
[326494341,1715009446053,-1022.53,0.00024657,2]
[326494342,1715009446063,-848.02,0.00024657,2]
[326494343,1715009446072,-810.66,0.00024657,18]
[326494344,1715009446082,-810.66,0.00024657,19]
[326494345,1715009446091,-810.66,0.00024657,20]
[326494346,1715009446101,-1153.71,0.00024657,2]
[326494347,1715009446110,-810.66,0.00024657,21]
[326494348,1715009446119,-810.66,0.00024657,21]
[326494350,1715009446128,-810.66,0.00024657,21]
[326494352,1715009446137,-810.66,0.00024657,21]
[326494355,1715009446146,-810.66688475,0.00024657,21]
[326494358,1715009446156,-500.0,0.00024657,2]
[326494360,1715009446165,-1178.81,0.00024657,2]
[326494362,1715009446175,-500.0,0.00024657,2]
[326494364,1715009446184,-596.69,0.00024657,2]
[326494366,1715009446194,-846.09,0.00024657,2]
[326494368,1715009446203,-500.0,0.00024657,2]
[326494370,1715009446213,-709.43,0.00024657,2]
[326494372,1715009446225,-683.6,0.00024657,2]
[326494373,1715009446234,-1087.36,0.00024657,2]
[326494374,1715009446244,-1009.77,0.00024657,2]
[326494375,1715009446253,-500.0,0.00024657,2]
[326494376,1715009446262,-500.0,0.00024657,2]
[326494377,1715009446271,-500.0,0.00024657,2]
[326494378,1715009446281,-606.33,0.00024657,2]
[326494379,1715009446297,-605.45,0.00024657,2]
[326494380,1715009446307,-500.0,0.00024657,2]
[326494381,1715009446316,-666.22,0.00024657,2]
[326494382,1715009446325,-500.0,0.00024657,2]
[326494383,1715009446336,-500.0,0.00024657,2]
[326494384,1715009446346,-500.0,0.00024657,2]
[326494385,1715009446355,-1066.8,0.00024657,2]
[326494386,1715009446365,-490.44156551,0.00024657,2]
[326494387,1715009446374,-1015.82,0.00024657,2]
[326494388,1715009446385,-773.12,0.00024657,2]
[326494389,1715009446394,-885.32,0.00024657,2]
[326494390,1715009446404,-500.0,0.00024657,2]
[326494391,1715009446414,-500.0,0.00024657,2]
[326494392,1715009446423,-500.0,0.00024657,2]
[326494393,1715009446432,-500.0,0.00024657,3]
[326494394,1715009446441,-500.0,0.00024657,4]
[326494395,1715009446452,-1733.47,0.00024657,2]
[326494396,1715009446461,-500.0,0.00024657,5]
[326494397,1715009446473,-500.0,0.00024657,6]
[326494398,1715009446482,-500.0,0.00024657,7]
[326494399,1715009446492,-661.74,0.00024657,2]
[326494400,1715009446501,-500.0,0.00024657,8]
[326494401,1715009446510,-506.62293067,0.00024657,9]
[326494402,1715009446520,-500.0,0.00024657,2]
[326494403,1715009446529,-500.0,0.00024657,2]
[326494404,1715009446540,-859.01,0.00024657,2]
[326494405,1715009446549,-500.0,0.00024657,2]
[326494406,1715009446561,-500.0,0.00024657,2]
[326494407,1715009446587,-911.16,0.00024657,2]
[326494408,1715009446596,-1130.21,0.00024657,2]
[326494409,1715009446606,-500.0,0.00024657,2]
[326494410,1715009446615,-506.32250381,0.00024657,2]
[326494411,1715009446625,-811.36,0.00024657,2]
[326494412,1715009446635,-500.0,0.00024657,2]
[326494413,1715009446644,-500.0,0.00024657,2]
[326494414,1715009446653,-500.0,0.00024657,2]
[326494415,1715009446663,-705.39,0.00024657,2]
[326494416,1715009446672,-500.0,0.00024657,2]
[326494417,1715009446682,-500.0,0.00024657,2]
[326494418,1715009446692,-500.0,0.00024657,2]
[326494419,1715009446701,-500.0,0.00024657,2]
[326494420,1715009446711,-932.34,0.00024657,2]
[326494421,1715009446721,-500.0,0.00024657,2]
[326494422,1715009446731,-500.0,0.00024657,2]
[326494423,1715009446740,-500.0,0.00024657,2]
[326494424,1715009446749,-1431.67,0.00024657,2]
[326494425,1715009446762,-502.73497211,0.00024657,2]
[326494426,1715009446771,-700.06,0.00024657,2]
[326494427,1715009446780,-500.0,0.00024657,2]
[326494428,1715009446789,-749.39,0.00024657,2]
[326494429,1715009446800,-767.02,0.00024657,2]
[326494430,1715009446809,-1186.32,0.00024657,2]
[326494431,1715009446818,-1083.13,0.00024657,2]
[326494432,1715009446828,-500.0,0.00024657,2]
[326494433,1715009446838,-659.71,0.00024657,2]
[326494434,1715009446848,-863.45,0.00024657,2]
[326494435,1715009446858,-500.0,0.00024657,2]
[326494436,1715009446867,-571.63,0.00024657,2]
[326494437,1715009446877,-801.67,0.00024657,2]
[326494438,1715009446886,-1890.91,0.00024657,2]
[326494439,1715009446895,-653.74,0.00024657,2]
[326494440,1715009446905,-961.58,0.00024657,2]
[326494441,1715009446914,-500.0,0.00024657,2]
[326494442,1715009446924,-600.5988,0.00024657,2]
[326494443,1715009446933,-500.0,0.00024657,2]
[326494444,1715009446942,-500.0,0.00024657,2]
[326494445,1715009446952,-500.0,0.00024657,2]
[326494446,1715009446961,-872.26,0.00024657,2]
[326494447,1715009446973,-512.98,0.00024657,2]
[326494448,1715009446983,-1099.89,0.00024657,2]
[326494449,1715009446993,-502.64,0.00024657,2]
[326494450,1715009447004,-584.09,0.00024657,2]
[326494451,1715009447014,-500.0,0.00024657,2]
[326494452,1715009447023,-1218.65,0.00024657,2]
[326494453,1715009447033,-950.18,0.00024657,2]
[326494454,1715009447042,-658.39,0.00024657,2]
[326494455,1715009447052,-1865.45,0.00024657,2]
[326494456,1715009447060,-500.0,0.00024657,2]
[326494457,1715009447070,-585.65,0.00024657,2]
[326494458,1715009447079,-500.0,0.00024657,2]
[326494459,1715009447088,-685.57,0.00024657,2]
[326494460,1715009447111,-606.07,0.00024657,2]
[326494461,1715009447125,-500.0,0.00024657,2]
[326494462,1715009447138,-500.0,0.00024657,2]
[326494463,1715009447148,-500.0,0.00024657,2]
[326494464,1715009447159,-1273.33,0.00024657,2]
[326494465,1715009447168,-500.0,0.00024657,2]
[326494466,1715009447178,-1023.23,0.00024657,2]
[326494467,1715009447187,-500.0,0.00024657,2]
[326494468,1715009447197,-507.05233766,0.00024657,2]
[326494469,1715009447206,-667.2,0.00024657,2]
[326494470,1715009447215,-512.57,0.00024657,2]
[326494471,1715009447227,-151.0,0.00024657,7]
[326494472,1715009447236,-500.0,0.00024657,2]
[326494473,1715009447245,-151.0,0.00024657,7]
[326494474,1715009447255,-151.0,0.00024657,7]
[326494475,1715009447264,-151.0,0.00024657,7]
[326494476,1715009447274,-1152.8,0.00024657,2]
[326494477,1715009447283,-151.0,0.00024657,7]
[326494478,1715009447293,-223.761691,0.00024657,7]
[326494479,1715009447302,-500.0,0.00024657,2]
[326494480,1715009447311,-500.0,0.00024657,2]
[326494481,1715009447321,-500.0,0.00024657,2]
[326494482,1715009447330,-823.83,0.00024657,2]
[326494483,1715009447340,-999.36,0.00024657,2]
[326494484,1715009447349,-500.0,0.00024657,2]
[326494485,1715009447358,-500.0,0.00024657,2]
[326494486,1715009447368,-731.34,0.00024657,2]
[326494487,1715009447377,-1085.03,0.00024657,2]
[326494488,1715009447389,-506.69484031,0.00024657,2]
[326494489,1715009447400,-505.60953931,0.00024657,2]
[326494490,1715009447411,-1504.18,0.00024657,2]
[326494491,1715009447421,-500.0,0.00024657,2]
[326494492,1715009447430,-1258.68,0.00024657,2]
[326494493,1715009447440,-1191.46,0.00024657,2]
[326494494,1715009447450,-500.0,0.00024657,2]
[326494495,1715009447459,-829.17,0.00024657,2]
[326494496,1715009447469,-507.28198254,0.00024657,2]
[326494497,1715009447479,-828.7,0.00024657,2]
[326494498,1715009447488,-500.0,0.00024657,2]
[326494499,1715009447498,-1268.18,0.00024657,2]
[326494500,1715009447507,-500.0,0.00024657,2]
[326494501,1715009447516,-1173.62,0.00024657,2]
[326494502,1715009447526,-500.0,0.00024657,2]
[326494503,1715009447535,-500.0,0.00024657,2]
[326494504,1715009447545,-2312.7,0.00024657,2]
[326494505,1715009447554,-500.0,0.00024657,2]
[326494506,1715009447566,-1242.11,0.00024657,2]
[326494507,1715009447575,-500.0,0.00024657,2]
[326494508,1715009447585,-1015.72,0.00024657,2]
[326494509,1715009447595,-1195.8,0.00024657,2]
[326494510,1715009447605,-500.0,0.00024657,2]
[326494511,1715009447615,-500.0,0.00024657,2]
[326494512,1715009447625,-500.0,0.00024657,2]
[326494513,1715009447634,-1102.49,0.00024657,2]
[326494514,1715009447644,-500.0,0.00024657,2]
[326494515,1715009447654,-500.0,0.00024657,2]
[326494516,1715009447664,-500.0,0.00024657,2]
[326494517,1715009447673,-500.0,0.00024657,2]
[326494518,1715009447683,-500.0,0.00024657,2]
[326494519,1715009447693,-500.0,0.00024657,2]
[326494520,1715009447703,-653.47,0.00024657,2]
[326494521,1715009447713,-1188.97,0.00024657,2]
[326494522,1715009447724,-1414.06,0.00024657,2]
[326494523,1715009447734,-1646.30259971,0.00024657,14]
[326494524,1715009447743,-1137.47,0.00024657,2]
[326494525,1715009447755,-561.2,0.00024657,2]
[326494526,1715009447768,-720.29,0.00024657,2]
[326494527,1715009447780,-435.56580111,0.00024657,2]
[326494528,1715009447790,-500.0,0.00024657,2]
[326494529,1715009447799,-616.26,0.00024657,2]
[326494530,1715009447809,-923.54,0.00024657,2]
[326494531,1715009447818,-500.0,0.00024657,2]
[326494532,1715009447828,-680.79,0.00024657,2]
[326494533,1715009447838,-725.5,0.00024657,2]
[326494534,1715009447848,-682.14,0.00024657,2]
[326494535,1715009447858,-506.36382444,0.00024657,2]
[326494536,1715009447868,-1768.76,0.00024657,2]
[326494537,1715009447878,-1143.37,0.00024657,2]
[326494538,1715009447888,-500.0,0.00024657,2]
[326494539,1715009447898,-1667.98,0.00024657,2]
[326494540,1715009447908,-500.0,0.00024657,2]
[326494541,1715009447917,-500.0,0.00024657,2]
[326494542,1715009447927,-518.34,0.00024657,2]
[326494543,1715009447936,-500.0,0.00024657,2]
[326494544,1715009447946,-500.0,0.00024657,2]
[326494545,1715009447955,-500.0,0.00024657,2]
[326494546,1715009447964,-500.0,0.00024657,2]
[326494547,1715009447976,-500.0,0.00024657,2]
[326494548,1715009447985,-502.47842533,0.00024657,2]
[326494549,1715009447995,-762.11,0.00024657,2]
[326494550,1715009448005,-500.0,0.00024657,2]
[326494551,1715009448015,-500.0,0.00024657,2]
[326494552,1715009448025,-500.0,0.00024657,2]
[326494553,1715009448034,-500.0,0.00024657,2]
[326494554,1715009448044,-794.05,0.00024657,2]
[326494555,1715009448054,-533.1,0.00024657,2]
[326494556,1715009448064,-505.86846708,0.00024657,2]
[326494557,1715009448076,-500.0,0.00024657,2]
[326494558,1715009448086,-1008.18,0.00024657,2]
[326494559,1715009448095,-500.0,0.00024657,2]
[326494560,1715009448104,-500.0,0.00024657,2]
[326494561,1715009448114,-500.0,0.00024657,2]
[326494562,1715009448123,-500.0,0.00024657,2]
[326494563,1715009448132,-1503.41,0.00024657,2]
[326494564,1715009448141,-500.0,0.00024657,2]
[326494565,1715009448151,-510.49,0.00024657,2]
[326494566,1715009448164,-736.54,0.00024657,2]
[326494567,1715009448173,-505.27410387,0.00024657,2]
[326494568,1715009448184,-500.0,0.00024657,2]
[326494569,1715009448193,-500.0,0.00024657,2]
[326494570,1715009448203,-565.5,0.00024657,2]
[326494571,1715009448212,-500.0,0.00024657,2]
[326494572,1715009448223,-500.0,0.00024657,2]
[326494573,1715009448232,-1400.66,0.00024657,2]
[326494574,1715009448242,-500.0,0.00024657,2]
[326494575,1715009448251,-505.24603494,0.00024657,2]
[326494576,1715009448261,-500.0,0.00024657,2]
[326494577,1715009448271,-500.0,0.00024657,2]
[326494578,1715009448281,-1644.54,0.00024657,2]
[326494579,1715009448290,-500.0,0.00024657,2]
[326494580,1715009448299,-1912.03,0.00024657,2]
[326494581,1715009448309,-500.0,0.00024657,2]
[326494582,1715009448319,-655.28,0.00024657,2]
[326494583,1715009448329,-500.0,0.00024657,2]
[326494584,1715009448340,-323.72852694,0.00024657,2]
[326494585,1715009448349,-713.17,0.00024657,2]
[326494586,1715009448358,-500.0,0.00024657,2]
[326494587,1715009448367,-2344.78,0.00024657,2]
[326494588,1715009448377,-1420.44,0.00024657,2]
[326494589,1715009448388,-2190.6,0.00024657,2]
[326494590,1715009448398,-394.27774839,0.00024657,2]
[326494591,1715009448407,-1574.93,0.00024657,2]
[326494592,1715009448417,-546.84420975,0.00024657,2]
[326494593,1715009448428,-500.0,0.00024657,2]
[326494594,1715009448437,-500.0,0.00024657,2]
[326494595,1715009448447,-500.0,0.00024657,2]
[326494596,1715009448457,-515.52728548,0.00024657,2]
[326494597,1715009448467,-1955.19,0.00024657,2]
[326494598,1715009448478,-557.66,0.00024657,2]
[326494599,1715009448488,-1023.72,0.00024657,2]
[326494600,1715009448498,-573.7,0.00024657,2]
[326494601,1715009448510,-997.83,0.00024657,2]
[326494602,1715009448520,-525.55,0.00024657,2]
[326494603,1715009448529,-475.77360156,0.00024657,2]
[326494604,1715009448539,-1896.66,0.00024657,2]
[326494605,1715009448549,-500.0,0.00024657,2]
[326494606,1715009448559,-1816.67,0.00024657,2]
[326494607,1715009448569,-500.0,0.00024657,2]
[326494608,1715009448579,-179.60556812,0.00024657,2]
[326494609,1715009448588,-503.9267557,0.00024657,2]
[326494610,1715009448597,-500.0,0.00024657,2]
[326494611,1715009448607,-500.0,0.00024657,2]
[326494612,1715009448616,-1352.3,0.00024657,2]
[326494613,1715009448625,-1391.1,0.00024657,2]
[326494614,1715009448634,-1707.62,0.00024657,2]
[326494615,1715009448644,-766.8,0.00024657,2]
[326494616,1715009448653,-1194.6,0.00024657,2]
[326494617,1715009448662,-648.26,0.00024657,2]
[326494618,1715009448672,-505.77706411,0.00024657,2]
[326494619,1715009448681,-1321.73,0.00024657,2]
[326494620,1715009448691,-500.0,0.00024657,2]
[326494621,1715009448700,-500.0,0.00024657,2]
[326494622,1715009448709,-500.0,0.00024657,2]
[326494623,1715009448719,-500.0,0.00024657,2]
[326494624,1715009448729,-1270.81,0.00024657,2]
[326494625,1715009448739,-521.21,0.00024657,2]
[326494626,1715009448748,-500.0,0.00024657,2]
[326494627,1715009448761,-708.11,0.00024657,2]
[326494628,1715009448771,-1129.74,0.00024657,2]
[326494629,1715009448780,-989.92,0.00024657,2]
[326494630,1715009448789,-505.91851911,0.00024657,2]
[326494631,1715009448798,-500.0,0.00024657,2]
[326494632,1715009448809,-500.0,0.00024657,2]
[326494633,1715009448818,-500.0,0.00024657,2]
[326494634,1715009448827,-936.25,0.00024657,2]
[326494635,1715009448837,-533.73215901,0.00024657,2]
[326494636,1715009448848,-500.0,0.00024657,2]
[326494637,1715009448858,-553.87,0.00024657,2]
[326494638,1715009448867,-1963.0,0.00024657,2]
[326494639,1715009448876,-946.3,0.00024657,2]
[326494640,1715009448886,-1073.3,0.00024657,2]
[326494641,1715009448895,-1097.27,0.00024657,2]
[326494642,1715009448904,-500.0,0.00024657,2]
[326494643,1715009448913,-500.0,0.00024657,2]
[326494644,1715009448922,-797.87,0.00024657,2]
[326494645,1715009448932,-688.65,0.00024657,2]
[326494646,1715009448941,-1744.5,0.00024657,2]
[326494647,1715009448950,-1285.63,0.00024657,2]
[326494648,1715009448959,-1410.99,0.00024657,2]
[326494649,1715009448968,-500.0,0.00024657,2]
[326494650,1715009448979,-640.4,0.00024657,2]
[326494651,1715009448988,-500.0,0.00024657,2]
[326494652,1715009448997,-973.55,0.00024657,2]
[326494653,1715009449006,-500.0,0.00024657,2]
[326494654,1715009449016,-1317.55,0.00024657,2]
[326494655,1715009449026,-628.92,0.00024657,2]
[326494656,1715009449035,-500.0,0.00024657,2]
[326494657,1715009449048,-500.0,0.00024657,2]
[326494658,1715009449058,-605.04,0.00024657,2]
[326494659,1715009449068,-659.35,0.00024657,2]
[326494660,1715009449078,-1265.18,0.00024657,2]
[326494661,1715009449087,-500.0,0.00024657,2]
[326494662,1715009449096,-220.7,0.00024657,2]
[326494663,1715009449106,-500.0,0.00024657,2]
[326494664,1715009449115,-210.77335016,0.00024657,2]
[326494665,1715009449126,-500.0,0.00024657,2]
[326494666,1715009449136,-1161.66,0.00024657,2]
[326494667,1715009449146,-705.26,0.00024657,2]
[326494668,1715009449156,-1571.11,0.00024657,2]
[326494669,1715009449165,-500.0,0.00024657,2]
[326494670,1715009449175,-527.58610914,0.00024657,2]
[326494671,1715009449184,-500.0,0.00024657,2]
[326494672,1715009449193,-500.0,0.00024657,2]
[326494673,1715009449203,-879.88,0.00024657,2]
[326494674,1715009449212,-1058.68,0.00024657,2]
[326494675,1715009449222,-812.5,0.00024657,2]
[326494676,1715009449231,-1272.13,0.00024657,2]
[326494677,1715009449241,-574.27,0.00024657,2]
[326494678,1715009449250,-500.0,0.00024657,2]
[326494679,1715009449260,-1241.72,0.00024657,2]
[326494680,1715009449269,-1077.12,0.00024657,2]
[326494681,1715009449278,-809.64,0.00024657,2]
[326494682,1715009449287,-500.0,0.00024657,2]
[326494683,1715009449297,-2261.22,0.00024657,2]
[326494684,1715009449307,-500.0,0.00024657,2]
[326494685,1715009449316,-718.28,0.00024657,2]
[326494686,1715009449325,-1834.15,0.00024657,2]
[326494687,1715009449335,-1337.7,0.00024657,2]
[326494688,1715009449347,-1314.63,0.00024657,2]
[326494689,1715009449356,-506.02,0.00024657,2]
[326494690,1715009449365,-593.54,0.00024657,2]
[326494691,1715009449377,-2552.83,0.00024657,2]
[326494692,1715009449387,-1326.88,0.00024657,2]
[326494693,1715009449396,-502.86811323,0.00024657,2]
[326494694,1715009449405,-500.0,0.00024657,2]
[326494695,1715009449415,-500.0,0.00024657,2]
[326494696,1715009449424,-1084.01,0.00024657,2]
[326494697,1715009449434,-670.56,0.00024657,2]
[326494698,1715009449444,-554.6,0.00024657,2]
[326494699,1715009449454,-1373.27,0.00024657,2]
[326494700,1715009449464,-500.0,0.00024657,2]
[326494701,1715009449475,-3000.0,0.00024657,3]
[326494702,1715009449484,-1139.32,0.00024657,2]
[326494703,1715009449494,-994.66,0.00024657,2]
[326494704,1715009449503,-500.0,0.00024657,2]
[326494705,1715009449512,-2128.88,0.00024657,2]
[326494706,1715009449527,-1465.55,0.00024657,2]
[326494707,1715009449537,-549.74,0.00024657,2]
[326494708,1715009449546,-890.02,0.00024657,2]
[326494709,1715009449556,-2846.98,0.00024657,2]
[326494710,1715009449565,-1932.04,0.00024657,2]
[326494711,1715009449575,-180.20136193,0.00024657,2]
[326494712,1715009449585,-1124.82,0.00024657,2]
[326494713,1715009449597,-1819.88,0.00024657,2]
[326494714,1715009449607,-500.0,0.00024657,2]
[326494715,1715009449617,-2178.06,0.00024657,2]
[326494716,1715009449626,-837.75,0.00024657,2]
[326494717,1715009449635,-772.42,0.00024657,2]
[326494718,1715009449645,-1572.83,0.00024657,2]
[326494719,1715009449655,-652.45,0.00024657,2]
[326494720,1715009449664,-500.0,0.00024657,2]
[326494721,1715009449674,-500.0,0.00024657,2]
[326494722,1715009449900,-620.62,0.00024657,2]
[326494723,1715009449910,-1891.22,0.00024657,2]
[326494724,1715009449919,-2017.32,0.00024657,2]
[326494725,1715009449930,-503.31539002,0.00024657,2]
[326494726,1715009449939,-1123.67,0.00024657,2]
[326494727,1715009449948,-1112.26,0.00024657,2]
[326494728,1715009449958,-579.7,0.00024657,2]
[326494729,1715009449967,-963.92,0.00024657,2]
[326494730,1715009449977,-500.0,0.00024657,2]
[326494731,1715009449986,-751.76,0.00024657,2]
[326494732,1715009449995,-1479.04,0.00024657,2]
[326494733,1715009450005,-500.0,0.00024657,2]
[326494734,1715009450014,-2922.7,0.00024657,2]
[326494735,1715009450023,-645.61,0.00024657,2]
[326494736,1715009450033,-2260.98,0.00024657,2]
[326494737,1715009450042,-736.11,0.00024657,2]
[326494738,1715009450052,-1817.46,0.00024657,2]
[326494739,1715009450061,-1628.53,0.00024657,2]
[326494740,1715009450071,-500.0,0.00024657,2]
[326494741,1715009450080,-500.0,0.00024657,2]
[326494742,1715009450089,-2895.83,0.00024657,2]
[326494743,1715009450099,-500.0,0.00024657,2]
[326494744,1715009450108,-960.36,0.00024657,2]
[326494745,1715009450118,-500.0,0.00024657,2]
[326494746,1715009450128,-1199.63,0.00024657,2]
[326494747,1715009450138,-500.0,0.00024657,2]
[326494748,1715009450147,-500.0,0.00024657,2]
[326494749,1715009450157,-505.14158841,0.00024657,2]
[326494750,1715009450167,-1796.92,0.00024657,2]
[326494751,1715009450177,-1517.46,0.00024657,2]
[326494752,1715009450187,-500.0,0.00024657,2]
[326494753,1715009450197,-500.0,0.00024657,2]
[326494754,1715009450206,-500.0,0.00024657,2]
[326494755,1715009450216,-515.69149928,0.00024657,2]
[326494756,1715009450228,-2510.07,0.00024657,2]
[326494757,1715009450238,-1231.39,0.00024657,2]
[326494758,1715009450248,-1455.58,0.00024657,2]
[326494759,1715009450257,-500.0,0.00024657,2]
[326494760,1715009450267,-589.42,0.00024657,2]
[326494761,1715009450277,-500.0,0.00024657,2]
[326494762,1715009450286,-1574.83,0.00024657,2]
[326494763,1715009450296,-691.64,0.00024657,2]
[326494764,1715009450305,-3493.19,0.00024657,2]
[326494765,1715009450315,-300.0,0.00024657,2]
[326494766,1715009450325,-5232.6,0.00024657,2]
[326494767,1715009450334,-1655.38,0.00024657,2]
[326494768,1715009450344,-2497.22,0.00024657,2]
[326494769,1715009450353,-504.77256548,0.00024657,2]
[326494770,1715009450363,-516.42,0.00024657,2]
[326494771,1715009450373,-862.46,0.00024657,2]
[326494772,1715009450382,-500.0,0.00024657,2]
[326494773,1715009450394,-500.0,0.00024657,2]
[326494774,1715009450404,-500.0,0.00024657,2]
[326494775,1715009450414,-500.0,0.00024657,2]
[326494776,1715009450423,-390.68746162,0.00024657,2]
[326494777,1715009450434,-1412.29,0.00024657,2]
[326494778,1715009450445,-1028.01,0.00024657,2]
[326494779,1715009450455,-734.87,0.00024657,2]
[326494780,1715009450465,-1131.07,0.00024657,2]
[326494781,1715009450477,-1653.21,0.00024657,2]
[326494782,1715009450487,-1208.08,0.00024657,2]
[326494783,1715009450497,-500.0,0.00024657,2]
[326494784,1715009450506,-500.0,0.00024657,2]
[326494785,1715009450515,-500.0,0.00024657,2]
[326494786,1715009450525,-1214.26,0.00024657,2]
[326494787,1715009450535,-500.0,0.00024657,2]
[326494788,1715009450545,-761.52,0.00024657,2]
[326494789,1715009450554,-744.96,0.00024657,2]
[326494790,1715009450564,-500.0,0.00024657,2]
[326494791,1715009450573,-681.7,0.00024657,2]
[326494792,1715009450583,-592.31,0.00024657,2]
[326494793,1715009450593,-682.42,0.00024657,2]
[326494794,1715009450603,-500.0,0.00024657,2]
[326494795,1715009450612,-328.40582415,0.00024657,2]
[326494796,1715009450622,-500.0,0.00024657,2]
[326494797,1715009450632,-1193.03,0.00024657,2]
[326494798,1715009450642,-500.0,0.00024657,2]
[326494799,1715009450652,-500.0,0.00024657,2]
[326494800,1715009450662,-500.0,0.00024657,2]
[326494801,1715009450671,-831.06,0.00024657,2]
[326494802,1715009450681,-500.0,0.00024657,2]
[326494803,1715009450690,-1740.2,0.00024657,2]
[326494804,1715009450700,-509.58482256,0.00024657,2]
[326494805,1715009450710,-564.04,0.00024657,2]
[326494806,1715009450719,-564.04,0.00024657,3]
[326494807,1715009450736,-564.04,0.00024657,4]